lending/lending_fUSD_20240830
["ID","MTS","AMOUNT","RATE_DAILY","PERIOD"]
[336660119,1725000160555,-3206.56906476,0.00039603,30]
[336660120,1725000160578,-412.47894593,0.00039605,30]
[336660121,1725000160604,-412.47894593,0.00039606,30]
[336660122,1725000160627,-1179.98023,0.00039608,30]
[336660123,1725000160652,-150.0,0.00039616,120]
[336660124,1725000160978,-2777.28545884,0.00039617,30]
[336660125,1725000161003,-272.33650293,0.00039619,30]
[336660126,1725000161027,-3206.56906476,0.00039621,30]
[336660127,1725000161051,-191.27933755,0.00039626,30]
[336660128,1725000161074,-191.27933755,0.00039626,30]
[336660129,1725000161100,-847.08330523,0.00039628,30]
[336660130,1725000161124,-3206.56906476,0.00039635,30]
[336660131,1725000161147,-412.47894593,0.00039637,30]
[336660132,1725000161171,-2777.28545884,0.00039639,30]
[336660133,1725000161194,-847.08330523,0.00039641,30]
[336660134,1725000161217,-191.27933755,0.00039644,30]
[336660135,1725000161240,-2777.28545884,0.00039651,30]
[336660136,1725000161273,-272.33650293,0.00039662,30]
[336660137,1725000161297,-272.33650293,0.00039663,30]
[336660138,1725000161324,-2777.28545884,0.00039666,30]
[336660139,1725000161349,-847.08330523,0.00039667,30]
[336660140,1725000161373,-3206.56906476,0.00039668,30]
[336660141,1725000161397,-2777.28545884,0.00039669,30]
[336660142,1725000161422,-3206.56906476,0.00039672,30]
[336660143,1725000161445,-847.08330523,0.00039672,30]
[336660144,1725000161469,-272.33650293,0.00039675,30]
[336660145,1725000161492,-412.47894593,0.00039679,30]
[336660146,1725000161515,-191.27933755,0.0003968,30]
[336660147,1725000161538,-272.33650293,0.0003968,30]
[336660148,1725000161564,-191.27933755,0.00039681,30]
[336660149,1725000161589,-940.54813094,0.00039683,30]
[336660150,1725000161614,-847.08330523,0.00039684,30]
[336660151,1725000161642,-412.47894593,0.00039698,30]
[336660152,1725000161668,-150.083006,0.00039698,118]
[336660153,1725000161691,-43594.99934736,0.000397,120]
[336660154,1725000161714,-1988.73399784,0.00039726,30]
[336660155,1725000161739,-5000.0,0.00039726,30]
[336660156,1725000161764,-5000.0,0.00039726,30]
[336660157,1725000161789,-5000.0,0.00039726,30]
[336660158,1725000161813,-5000.0,0.00039726,30]
[336660159,1725000161835,-5000.0,0.00039726,30]
[336660160,1725000161860,-5000.0,0.00039726,30]
[336660161,1725000161883,-5000.0,0.00039726,30]
[336660162,1725000161906,-5000.0,0.00039726,30]
[336660163,1725000161929,-5000.0,0.00039726,30]
[336660164,1725000161954,-5000.0,0.00039726,30]
[336660165,1725000161979,-5000.0,0.00039726,30]
[336660166,1725000162004,-5000.0,0.00039726,30]
[336660167,1725000162028,-5000.0,0.00039726,30]
[336660168,1725000162054,-5000.0,0.00039726,30]
[336660169,1725000162078,-5000.0,0.00039726,30]
[336660170,1725000162102,-5000.0,0.00039726,30]
[336660171,1725000162126,-5000.0,0.00039726,30]
[336660172,1725000162150,-4093.3308505,0.00039726,30]
[336660173,1725000162174,-2733.66,0.00039726,120]
[336660174,1725000162198,-1246.42,0.00039726,120]
[336660175,1725000162222,-150.0,0.0003979,30]
[336660176,1725000162250,-2275.84980322,0.000398,120]
[336660177,1725000162275,-2000.0,0.000398,120]
[336660178,1725000162300,-768410.87846024,0.000398,90]
[336660179,1725000204942,52461.0,0.0001089,2]
[336660181,1725000278550,164.98,0.00010959,2]
[336660182,1725000303218,412.93,0.00024,120]
[336660183,1725000305298,206.683,0.000109,2]
[336660184,1725000313359,150.5,0.0001799,120]
[336660185,1725000313422,150.5,0.0001799,120]
[336660186,1725000313825,167.7,0.0001798,120]
[336660187,1725000313869,292.94,0.0001798,120]
[336660189,1725000378904,2000.0,0.00020434,120]
[336660190,1725000435478,150.0,9.888e-05,2]
[336660191,1725000435794,150.0,0.00010437,2]
[336660193,1725000479613,172.8445,0.000109,2]
[336660212,1725000631859,-187.6098668,0.00010968,2]
[336660213,1725000631869,-189.92878553,0.00010968,2]
[336660214,1725000631880,-458.0,0.00010985,2]
[336660215,1725000631891,-150.0,0.00010986,2]
[336660216,1725000631902,-20133.87839727,0.0001099,2]
[336660217,1725000631913,-187.95592186,0.00010999,2]
[336660218,1725000631924,-38167.02727522,0.00011,2]
[336660219,1725000631936,-4835.63922378,0.00011,2]
[336660220,1725000631948,-552.46305185,0.00011,2]
[336660221,1725000631975,-2278.27269735,0.00011,2]
[336660222,1725000631986,-5295.56352255,0.00011,2]
[336660223,1725000631997,-4957.06675285,0.00011,2]
[336660224,1725000632011,-298.62086198,0.00011,2]
[336660225,1725000632032,-92014.21395927,0.00011,2]
[336660227,1725000637903,-1007.07875757,0.00011,2]
[336660249,1725000638575,-1158.95963444,0.00011,2]
[336660251,1725000638587,-459.00704846,0.00011,2]
[336660357,1725000639905,-760.74789201,0.00011,2]
[336660358,1725000639916,-281307.65773798,0.00011,2]
[336660359,1725000639926,-2757556.25448955,0.00011,2]
[336660360,1725000639938,-256.62236691,0.00011,2]
[336660361,1725000640081,-3260.405,0.00011,2]
[336660399,1725000640863,-1058.06846759,0.00011,2]
[336660402,1725000640874,-6068.0639622,0.00011,2]
[336660404,1725000640885,-309.06,0.00011,2]
[336660406,1725000640896,-739.87264126,0.00011,2]
[336660431,1725000642994,-1016.1,0.00011,2]
[336660432,1725000643042,-3796.31,0.00011,2]
[336660471,1725000643753,-40641.29442764,0.00011,2]
[336660485,1725000645823,-316.01403212,0.00011,2]
[336660486,1725000645835,-824.59977352,0.00011,2]
[336660487,1725000645865,-1491.15000001,0.00011,2]
[336660488,1725000645909,-5605.89535856,0.00011,2]
[336660489,1725000646058,-430.72220257,0.00011,2]
[336660490,1725000646069,-2020.29015397,0.00011,2]
[336660491,1725000646080,-2335.18041205,0.00011,2]
[336660492,1725000646091,-1089.88117537,0.00011,2]
[336660493,1725000646102,-2497.79507697,0.00011,2]
[336660494,1725000646141,-0.72019515,0.00011,2]
[336660495,1725000646152,-684.75496977,0.00011,2]
[336660496,1725000646163,-16062.3791908,0.00011,2]
[336660497,1725000646174,-1750.24114476,0.00011,2]
[336660498,1725000646189,-1383.40857251,0.00011,2]
[336660499,1725000646200,-329.20700671,0.00011,2]
[336660500,1725000646211,-1151.46518539,0.00011,2]
[336660621,1725000655276,2422.52877788,0.000109,2]
[336660622,1725000741005,341.3013,0.000109,2]
[336660623,1725000810137,152.4,0.00010959,2]
[336660625,1725000859095,812.0,0.00024,120]
[336660626,1725000869344,9141.1613,0.000109,2]
[336660627,1725000902206,2000.0,0.00020452,120]
[336660628,1725000907746,-253.2383807,0.00010968,2]
[336660629,1725000907778,-275.41157114,0.00010968,2]
[336660630,1725000907808,-388.84316885,0.00010968,2]
[336660631,1725000907859,-300.0,0.00010999,2]
[336660632,1725000907915,-141282.42664903,0.00011,2]
[336660633,1725000907949,-560057.08023028,0.00011,2]
[336660634,1725001105760,168.82558712,0.000109,2]
[336660637,1725001574893,503.03781006,0.00010959,2]
[336660639,1725001631852,150.0,9.888e-05,2]
[336660640,1725001801417,2000.0,0.00020554,120]
[336660641,1725001815577,500.0,0.00024,120]
[336660642,1725001831697,500.0,0.00024,120]
[336660646,1725001832073,-8680.88328834,0.00011,2]
[336660647,1725001832085,-156638.43789831,0.00011,2]
[336660648,1725001832096,-328.01300429,0.00011,2]
[336660649,1725001832124,-832.5702442,0.00011,2]
[336660650,1725001832165,-1143.0,0.00011,2]
[336660651,1725001832214,-327.39805379,0.00011,2]
[336660652,1725001832262,-328.4348001,0.00011,2]
[336660659,1725001838326,-860018.77124758,0.00011,2]
[336660660,1725001838366,-38121.96066083,0.00011,2]
[336660661,1725001838430,-16084.90153251,0.00011,2]
[336660662,1725001838466,-2110.22250085,0.00011,2]
[336660703,1725001840084,-1779.8373507,0.00011,2]
[336660706,1725001840097,-297.1011705,0.00011,2]
[336660710,1725001840129,-473.28023069,0.00011,2]
[336660712,1725001840140,-1917.30000001,0.00011,2]
[336660713,1725001840177,-875.6832297,0.00011,2]
[336660714,1725001840188,-271.37002482,0.00011,2]
[336660715,1725001840270,-3461.09667649,0.00011,2]
[336660716,1725001841172,500.0,0.00024,120]
[336660719,1725001843247,-177981.03080344,0.00011,2]
[336660720,1725001843382,-4037.48116576,0.00011,2]
[336660975,1725001846156,-1264.7968584,0.00011,2]
[336661009,1725001846489,-2372.81520537,0.00011,2]
[336661421,1725001850771,500.0,0.00024,120]
[336661679,1725001855278,490.817,0.000109,2]
[336661681,1725001860360,500.0,0.00024,120]
[336661682,1725001889843,178.0,0.00024,120]
[336661683,1725001909304,1321.86597212,0.00024,120]
[336661684,1725001928975,539.10882431,0.000109,2]
[336661685,1725001931836,3460.00009842,0.00010899,2]
[336661686,1725001981445,365.7887721,0.000109,2]
[336661687,1725002010511,185.90044616,0.000109,2]
[336661688,1725002096283,10802.55417921,0.00010898,2]
[336661689,1725002114084,243.8591814,0.000109,2]
[336661690,1725002134179,2101.54,0.0001,2]
[336661691,1725002135240,588.0,0.00024,120]
[336661692,1725002194675,255.0,0.00010899,2]
[336661693,1725002211941,471.72022128,0.000109,2]
[336661694,1725002247022,162.5727876,0.000109,2]
[336661695,1725002276505,167.47,0.00010959,2]
[336661697,1725002369177,-255.0,0.00010997,2]
[336661698,1725002369200,-968.71343274,0.00010997,2]
[336661699,1725002369221,-150.0,0.00010998,2]
[336661700,1725002369244,-300.0,0.00010998,2]
[336661701,1725002369264,-40326.28656726,0.00010999,2]
[336661702,1725002395381,-5800.0,0.00010999,2]
[336661704,1725002412716,185.90044613,0.000109,2]
[336661705,1725002419000,-3186.95954407,0.00010999,2]
[336661706,1725002419021,-277.76276379,0.00010999,2]
[336661707,1725002419042,-500.0,0.00010999,2]
[336661708,1725002419063,-500.0,0.00010999,2]
[336661709,1725002419083,-500.0,0.00010999,2]
[336661710,1725002419103,-508.55493095,0.00010999,2]
[336661711,1725002419124,-500.0,0.00010999,2]
[336661712,1725002419143,-235.05788737,0.00010999,2]
[336661713,1725002419164,-500.0,0.00010999,2]
[336661714,1725002419184,-500.0,0.00010999,2]
[336661715,1725002419205,-500.0,0.00010999,2]
[336661716,1725002419225,-300.0,0.00010999,2]
[336661717,1725002419244,-500.0,0.00010999,2]
[336661718,1725002419268,-250.0,0.00010999,2]
[336661719,1725002419288,-500.0,0.00010999,2]
[336661720,1725002419311,-258.84337136,0.00010999,2]
[336661721,1725002419332,-500.0,0.00010999,2]
[336661722,1725002419355,-500.0,0.00010999,2]
[336661723,1725002419376,-500.0,0.00010999,2]
[336661724,1725002419397,-500.0,0.00010999,2]
[336661725,1725002419419,-500.0,0.00010999,2]
[336661726,1725002419440,-500.0,0.00010999,2]
[336661727,1725002419461,-500.0,0.00010999,2]
[336661728,1725002419482,-293.1463052,0.00010999,2]
[336661729,1725002419508,-2134.67519726,0.00011,2]
[336661730,1725002492456,412.75519362,0.000109,2]
[336661731,1725002703269,158.77,0.00010959,2]
[336661732,1725002713815,793.89,0.00010959,2]
[336661733,1725002729089,80189.19207668,0.000101,2]
[336661734,1725002752680,177.86,0.00010959,2]
[336661735,1725002778361,361.1607944,0.000109,2]
[336661736,1725002806839,185.90044613,0.000109,2]
[336661737,1725002917288,1508.22498762,0.0002,60]
[336661740,1725002943304,-1418.83089496,0.0001099,2]
[336661771,1725003033096,-711.6,0.0001099,2]
[336661772,1725003033109,-1391.64730276,0.0001099,2]
[336661773,1725003033118,-150.0,0.00010999,2]
[336661774,1725003033128,-3425.00084409,0.00011,2]
[336661775,1725003033139,-18210.38206671,0.00011,2]
[336661776,1725003033149,-3649.63627015,0.00011,2]
[336661777,1725003033160,-279.69657276,0.00011,2]
[336661778,1725003033171,-662.54834617,0.00011,2]
[336661779,1725003033182,-16564.64269666,0.00011,2]
[336661780,1725003033193,-679.71,0.00011,2]
[336661781,1725003033205,-813.51458983,0.00011,2]
[336661782,1725003033215,-818.82444517,0.00011,2]
[336661783,1725003033227,-757.13168339,0.00011,2]
[336661784,1725003033238,-8884.36248333,0.00011,2]
[336661785,1725003033254,-4390.21581886,0.00011,2]
[336661786,1725003033266,-17493.2801832,0.00011,2]
[336661787,1725003033277,-660.64422178,0.00011,2]
[336661792,1725003038282,-1531.004925,0.00011,2]
[336661816,1725003038863,-6252.68810017,0.00011,2]
[336661819,1725003038877,-659.50000001,0.00011,2]
[336661821,1725003038888,-4186.27582778,0.00011,2]
[336661823,1725003038900,-14190.4932618,0.00011,2]
[336661825,1725003038909,-3643505.41407503,0.00011,2]
[336661828,1725003038918,-150.0,0.00011,2]
[336661831,1725003038928,-1004.46056691,0.00011,2]
[336661833,1725003038937,-1505613.33647683,0.00011,2]
[336661836,1725003038948,-178719.40322585,0.00011,2]
[336661838,1725003038963,-253.36372512,0.00011,2]
[336661840,1725003038975,-337.05911442,0.00011,2]
[336661843,1725003038991,-3545.23258283,0.00011,2]
[336661845,1725003039002,-2869.05284405,0.00011,2]
[336661937,1725003040303,-14379.00495764,0.00011,2]
[336661938,1725003040335,-285.12435591,0.00011,2]
[336661939,1725003040542,-2422.93774298,0.00011,2]
[336661940,1725003040554,-274.8363181,0.00011,2]
[336661941,1725003040566,-2385.502718,0.00011,2]
[336661942,1725003040578,-286.46731884,0.00011,2]
[336661943,1725003040589,-497.624578,0.00011,2]
[336661958,1725003040827,-318.9,0.00011,2]
[336661995,1725003043845,-3145.92623713,0.00011,2]
[336661996,1725003043857,-2682.01128193,0.00011,2]
[336661997,1725003043869,-5714.85787125,0.00011,2]
[336661998,1725003043886,-515.811067,0.00011,2]
[336661999,1725003043897,-475.33246739,0.00011,2]
[336662000,1725003043908,-565.99524606,0.00011,2]
[336662001,1725003043919,-742.96054236,0.00011,2]
[336662002,1725003043931,-9331.12535924,0.00011,2]
[336662003,1725003043942,-226140.90373667,0.00011,2]
[336662004,1725003043953,-1164461.42790389,0.00011,2]
[336662005,1725003043962,-11763.5541351,0.00011054,2]
[336662006,1725003043971,-6490.9720816,0.00011061,2]
[336662007,1725003043980,-150.0,0.00011068,2]
[336662008,1725003043989,-250.0,0.000111,2]
[336662009,1725003043998,-210.336464,0.00011109,2]
[336662010,1725003044007,-280.5392675,0.00011403,2]
[336662011,1725003044016,-179.99,0.00011403,2]
[336662012,1725003044025,-234.71,0.00011403,2]
[336662013,1725003044034,-499.99,0.00011403,2]
[336662014,1725003044044,-250.0,0.00012,2]
[336662015,1725003044053,-1648.08072,0.0001256,2]
[336662016,1725003044062,-1648.08073,0.0001273,2]
[336662017,1725003044071,-1648.08072,0.0001289,2]
[336662018,1725003044080,-1648.08073,0.0001304,2]
[336662019,1725003044089,-1648.08072,0.000132,2]
[336662020,1725003044098,-163.07,0.00013293,2]
[336662021,1725003044106,-1648.08073,0.0001335,2]
[336662022,1725003044117,-300.0,0.00014,2]
[336662023,1725003044126,-654.63,0.00014,2]
[336662024,1725003044135,-150.99,0.00014,2]
[336662025,1725003044144,-2563.8,0.00014,2]
[336662026,1725003044153,-1697.89,0.00014,2]
[336662027,1725003044162,-11572.77074069,0.00014088,2]
[336662028,1725003044171,-157.63,0.00015122,2]
[336662029,1725003044180,-7233.437,0.00015146,2]
[336662030,1725003044189,-502.0,0.00015533,2]
[336662031,1725003044199,-693.47,0.0001558,2]
[336662032,1725003044208,-350.0,0.00016,2]
[336662033,1725003044218,-7840.3,0.00016722,2]
[336662034,1725003044227,-250.0,0.00016733,2]
[336662035,1725003044236,-23900.0,0.00016757,2]
[336662036,1725003044245,-168.697,0.00016757,2]
[336662037,1725003044254,-1424.76,0.00016877,2]
[336662038,1725003044263,-2713.42,0.00016903,2]
[336662039,1725003044272,-1000.0,0.00016919,2]
[336662040,1725003044281,-1195.54,0.00016936,2]
[336662041,1725003044290,-454.45,0.00017071,2]
[336662042,1725003044299,-250.0,0.00017432,2]
[336662043,1725003044308,-2000.0,0.00017511,2]
[336662044,1725003044317,-4571.75,0.00017511,2]
[336662045,1725003044326,-157.63,0.0001752,2]
[336662046,1725003044335,-2908.61,0.00017701,2]
[336662047,1725003044345,-347.28,0.00017797,2]
[336662048,1725003044354,-693.47,0.00017844,2]
[336662049,1725003044363,-171.37,0.00017881,2]
[336662050,1725003044373,-711.01,0.00017894,2]
[336662051,1725003044383,-400.0,0.00018,2]
[336662052,1725003044391,-392.95,0.0001813,2]
[336662053,1725003044400,-2425.3,0.00018167,2]
[336662054,1725003044410,-533.25,0.00018208,2]
[336662055,1725003044419,-160.0,0.00018222,2]
[336662056,1725003044428,-243.5,0.00018236,2]
[336662057,1725003044437,-3954.04,0.00018537,2]
[336662058,1725003044446,-176.91,0.00018759,2]
[336662059,1725003044456,-291.2,0.0001889,2]
[336662060,1725003044469,-15445.5966,0.00019,10]
[336662061,1725003044478,-1000.0,0.00019034,2]
[336662062,1725003044487,-189.98,0.00019084,2]
[336662063,1725003044496,-4000.0,0.00019178,30]
[336662064,1725003044506,-152.4,0.00019361,2]
[336662065,1725003044516,-17544.54,0.000195,2]
[336662066,1725003044525,-2090.86,0.00019647,2]
[336662067,1725003044534,-2090.86,0.00019652,2]
[336662068,1725003044545,-2090.86,0.00019657,2]
[336662069,1725003044554,-2090.86,0.00019662,2]
[336662070,1725003044563,-2090.86,0.00019667,2]
[336662071,1725003044573,-2090.86,0.00019672,2]
[336662072,1725003044582,-2090.86,0.00019678,2]
[336662073,1725003044591,-2090.86,0.00019683,2]
[336662074,1725003044600,-2090.86,0.00019688,2]
[336662075,1725003044609,-2090.86,0.00019693,2]
[336662076,1725003044619,-2090.86,0.00019698,2]
[336662077,1725003044628,-2090.86,0.00019703,2]
[336662078,1725003044638,-2090.86,0.00019709,2]
[336662079,1725003044647,-2090.86,0.00019714,2]
[336662080,1725003044656,-2090.86,0.00019719,2]
[336662081,1725003044666,-2090.86,0.00019724,2]
[336662082,1725003044675,-2090.86,0.00019729,2]
[336662083,1725003044685,-2090.86,0.00019735,2]
[336662084,1725003044694,-2090.86,0.0001974,2]
[336662085,1725003044703,-2090.86,0.00019745,2]
[336662086,1725003044712,-2329.0,0.000199,3]
[336662087,1725003044721,-157.63,0.00019917,2]
[336662088,1725003044731,-450.0,0.0002,2]
[336662089,1725003044740,-325.90655964,0.0002,30]
[336662090,1725003044750,-693.47,0.00020108,2]
[336662091,1725003044759,-192.0,0.00020573,2]
[336662092,1725003044768,-756.0,0.000208,3]
[336662093,1725003044777,-1000.0,0.00021148,2]
[336662094,1725003044787,-291.2,0.00021251,2]
[336662095,1725003044797,-525.63,0.00021589,30]
[336662096,1725003044806,-1989.42,0.00021871,2]
[336662097,1725003044817,-1989.42,0.00021877,2]
[336662098,1725003044826,-1989.42,0.00021882,2]
[336662099,1725003045089,-1989.42,0.00021888,2]
[336662100,1725003045123,-1989.42,0.00021894,2]
[336662101,1725003045132,-1989.42,0.000219,2]
[336662102,1725003045141,-1989.42,0.00021905,2]
[336662103,1725003045150,-1989.42,0.00021911,2]
[336662104,1725003045159,-1989.42,0.00021917,2]
[336662105,1725003045168,-152.05,0.00021918,2]
[336662106,1725003045177,-614.56,0.00021918,2]
[336662107,1725003045186,-1989.42,0.00021923,2]
[336662108,1725003045195,-1989.42,0.00021928,2]
[336662109,1725003045203,-1989.42,0.00021934,2]
[336662110,1725003045212,-1989.42,0.0002194,2]
[336662111,1725003045221,-1989.42,0.00021946,2]
[336662112,1725003045230,-1989.42,0.00021951,2]
[336662113,1725003045239,-1989.42,0.00021957,2]
[336662114,1725003045248,-1989.42,0.00021963,2]
[336662115,1725003045258,-1989.42,0.00021969,2]
[336662116,1725003045267,-1989.42,0.00021974,2]
[336662117,1725003045276,-1989.42,0.0002198,2]
[336662118,1725003045285,-500.0,0.00022,2]
[336662119,1725003045294,-157.63,0.00022314,2]
[336662120,1725003045303,-693.47,0.00022372,2]
[336662121,1725003045312,-212.0,0.0002271,2]
[336662122,1725003045321,-186.3,0.00022723,2]
[336662123,1725003045329,-186.3,0.00022729,2]
[336662124,1725003045338,-186.3,0.00022735,2]
[336662125,1725003045347,-186.3,0.00022741,2]
[336662126,1725003045356,-186.3,0.00022747,2]
[336662127,1725003045365,-186.3,0.00022753,2]
[336662128,1725003045374,-186.3,0.00022758,2]
[336662129,1725003045383,-186.3,0.00022764,2]
[336662130,1725003045392,-186.3,0.0002277,2]
[336662131,1725003045401,-186.3,0.00022776,2]
[336662132,1725003045409,-186.3,0.00022782,2]
[336662133,1725003045418,-186.3,0.00022788,2]
[336662134,1725003045428,-186.3,0.00022794,2]
[336662135,1725003045437,-186.3,0.000228,2]
[336662136,1725003045445,-186.3,0.00022806,2]
[336662137,1725003045454,-186.3,0.00022812,2]
[336662138,1725003045468,-186.3,0.00022818,2]
[336662139,1725003045477,-186.3,0.00022824,2]
[336662140,1725003045486,-186.3,0.0002283,2]
[336662141,1725003045495,-186.3,0.00022836,2]
[336662142,1725003045504,-5324.500383,0.00023,5]
[336662143,1725003045514,-320.50219767,0.00023,7]
[336662144,1725003045523,-174.0,0.00023,2]
[336662145,1725003045532,-491.07,0.00023096,2]
[336662146,1725003045544,-421.76,0.00023096,2]
[336662147,1725003045553,-421.76,0.00023096,2]
[336662148,1725003045562,-421.76,0.00023096,2]
[336662149,1725003045570,-421.76,0.00023096,2]
[336662150,1725003045579,-421.76,0.00023096,2]
[336662151,1725003045588,-421.76,0.00023096,2]
[336662152,1725003045597,-421.76,0.00023096,2]
[336662153,1725003045606,-421.76,0.00023096,2]
[336662154,1725003045615,-180.0,0.00023205,2]
[336662155,1725003045624,-1000.0,0.00023263,2]
[336662156,1725003045633,-152.05,0.00023288,2]
[336662157,1725003045642,-1432.0,0.000233,2]
[336662158,1725003045652,-405.74,0.0002337,2]
[336662159,1725003045662,-150.0,0.0002337,2]
[336662160,1725003045671,-427.12,0.0002337,2]
[336662161,1725003045681,-151.04,0.0002337,2]
[336662162,1725003045691,-531.89,0.0002337,2]
[336662163,1725003045700,-150.0,0.0002337,2]
[336662164,1725003045709,-150.58,0.0002337,2]
[336662165,1725003045718,-150.0,0.0002337,2]
[336662166,1725003045727,-150.0,0.0002337,2]
[336662167,1725003045736,-427.12,0.0002337,2]
[336662168,1725003045746,-531.89,0.0002337,2]
[336662169,1725003045755,-150.0,0.0002337,2]
[336662170,1725003045764,-150.0,0.0002337,2]
[336662171,1725003045773,-150.0,0.0002337,2]
[336662172,1725003045783,-150.0,0.0002337,2]
[336662173,1725003045793,-357.13,0.0002337,2]
[336662174,1725003045803,-150.0,0.0002337,2]
[336662175,1725003045812,-528.66,0.0002337,2]
[336662176,1725003045821,-150.0,0.0002337,2]
[336662177,1725003045830,-427.12,0.0002337,2]
[336662178,1725003045839,-150.0,0.0002337,2]
[336662179,1725003045848,-150.0,0.0002337,2]
[336662180,1725003045857,-150.0,0.0002337,2]
[336662181,1725003045866,-357.13,0.0002337,2]
[336662182,1725003045876,-357.13,0.0002337,2]
[336662183,1725003045886,-150.0,0.0002337,2]
[336662184,1725003045895,-300.05,0.0002337,2]
[336662185,1725003045905,-150.0,0.0002337,2]
[336662186,1725003045914,-150.0,0.0002337,2]
[336662187,1725003045924,-357.13,0.0002337,2]
[336662188,1725003045933,-150.0,0.0002337,2]
[336662189,1725003045942,-150.0,0.0002337,2]
[336662190,1725003045951,-150.0,0.0002337,2]
[336662191,1725003045960,-150.0,0.0002337,2]
[336662192,1725003045969,-150.0,0.0002337,2]
[336662193,1725003045978,-150.0,0.0002337,2]
[336662194,1725003045987,-17544.54,0.000234,7]
[336662195,1725003045996,-3332.0,0.000235,10]
[336662196,1725003046006,-6264.995,0.0002352,4]
[336662197,1725003046015,-6264.996,0.0002352,4]
[336662198,1725003046024,-6264.995,0.0002352,4]
[336662199,1725003046035,-6264.996,0.0002352,4]
[336662200,1725003046044,-6264.995,0.0002352,4]
[336662201,1725003046053,-291.2,0.00023612,2]
[336662202,1725003046062,-1424.76,0.00023627,2]
[336662203,1725003046071,-176.382,0.0002376,4]
[336662204,1725003046081,-176.383,0.0002376,4]
[336662205,1725003046090,-176.383,0.0002376,4]
[336662206,1725003046099,-176.382,0.0002376,4]
[336662207,1725003046107,-1020.52,0.00023973,2]
[336662208,1725003046117,-550.0,0.00024,2]
[336662209,1725003046127,-2000.0,0.00024,2]
[336662210,1725003046136,-200.0,0.00024,2]
[336662211,1725003046146,-200.0,0.00024,2]
[336662212,1725003046155,-200.0,0.00024,2]
[336662213,1725003046165,-1400.0,0.00024046,2]
[336662214,1725003046174,-1186.82,0.00024073,6]
[336662215,1725003046183,-303.57,0.0002411,2]
[336662216,1725003046192,-160.61,0.0002411,2]
[336662217,1725003046201,-300.25,0.0002411,2]
[336662218,1725003046210,-300.86,0.0002411,2]
[336662219,1725003046219,-343.43,0.0002411,2]
[336662220,1725003046228,-150.0,0.0002411,2]
[336662221,1725003046237,-150.0,0.0002411,2]
[336662222,1725003046246,-150.0,0.0002411,2]
[336662223,1725003046255,-300.51,0.0002411,2]
[336662224,1725003046264,-150.0,0.0002411,2]
[336662225,1725003046274,-500.0,0.00024132,2]
[336662226,1725003046283,-500.0,0.00024138,2]
[336662227,1725003046292,-174.0,0.00024164,2]
[336662228,1725003046302,-500.7,0.00024205,2]
[336662229,1725003046311,-212.0,0.0002422,2]
[336662230,1725003046320,-200.0,0.0002424,2]
[336662231,1725003046329,-200.0,0.0002424,2]
[336662232,1725003046338,-500.0,0.00024267,2]
[336662233,1725003046347,-2800.0,0.00024357,2]
[336662234,1725003046355,-700.0,0.00024376,2]
[336662235,1725003046365,-500.0,0.00024383,2]
[336662236,1725003046374,-200.0,0.00024384,2]
[336662237,1725003046383,-428.8460735,0.00024384,2]
[336662238,1725003046392,-500.0,0.00024384,2]
[336662239,1725003046401,-500.0,0.00024384,2]